{"text_format":"1","workbook":"xlsx","n_sheets":7,"sheets":["INDICE de CONTENIDOS","Introduccion","Tipo Datos Constantes","Series de datos","Formato Estandar","Formato Personalizado NUMEROS","Formato Person FECHAS y HORAS"],"not_rendered":{"charts":0,"images":17,"macros":1,"external_links":1,"defined_names":10,"comments":2,"pivot_tables":0},"unopened":[],"bounds":{"document_bytes":16777216,"sheet_cells":100000,"rows_first":2000,"rows_last":500,"rows_between":2000,"halvings":0,"cell_chars":16384,"cell_head_chars":4096},"cells_cut":0,"cells_raw":0,"read":"whole","date_system":"1900"}

{"sheet":"INDICE de CONTENIDOS","index":0,"n_rows":16,"n_cols":4,"rows_kept":16,"cut":false,"hidden":false,"merged":[]}
["Microsoft Excel",null,null,2023]
[]
["HERRAMIENTAS INFORMATICAS II"]
[]
["Prof. Adj. Ing. Norma Cañizares"]
[]
["Introducción a Excel",null,null,"Unidad 1"]
[]
["INDICE de CONTENIDOS"]
["Conceptos Introductorios"]
["Introducción de Datos"]
["Serie de Datos"]
["Formato Estándar"]
["Formato Personalizado de Números"]
["Formato Personalizado de Fecha y Hora"]
["Final Índice de Contenidos"]

{"sheet":"Introduccion","index":1,"n_rows":129,"n_cols":4,"rows_kept":129,"cut":false,"hidden":false,"merged":[[2,1,2,6]]}
[null,"Volver al INDICE GENERAL"]
[]
[null,"Conceptos Introductorios"]
[]
[null,"INDICE de CONTENIDOS"]
[null,"¿Qué es Microsoft Excel?"]
[null,"Interfaz de Excel"]
[null,"Terminología Básica"]
[null,"     Libro"]
[null,"     Hoja de Cálculo"]
[null,"     Celdas"]
[null,"     Rango"]
[null,"Asignar Nombres a Celdas o Rangos"]
[null,"     Procedimiento para asignar un nombre a una celda o rango de celdas."]
[null,"Final Índice de Contenidos"]
[]
[]
["*","¿Qué es Microsoft Excel?"]
[]
[null,"Excel es una aplicación desarrollada por Microsoft y distribuida en el paquete de Office."]
[null,"Presenta una interfaz intuitiva y amigable con archivos de ayuda incorporados."]
[null,"Excel es una Hoja de Cálculo que sirve para manejar datos numéricos o alfanuméricos agrupados en filas y columnas también llamadas tablas de datos. "]
[null,"Excel es una herramienta de gran utilidad a la hora de crear presupuestos, diseñar facturas, generar gráficos estadísticos, crear bases de datos y múltiples operaciones más. "]
[null,"Volver al Principio"]
[]
["*","Interfaz de Excel"]
[]
[]
[]
[]
[]
[]
[]
[]
[]
[]
[]
[]
[]
[]
[]
[]
[]
[]
[]
[]
[]
[]
[]
[]
[]
[]
[]
[]
[]
[]
[]
[]
[]
[null,"Volver al Principio"]
[]
["*","Terminología Básica"]
[]
["=>","Libro"]
[null,"*","A un archivo de Excel se lo conoce con el nombre de “Libro”."]
[null,"*","Cada Libro => esta constituido por varias “hojas de calculo”"]
[null,"*","Cada Hoja de Cálculo => esta formado por filas y columnas"]
[null,"*","Los archivos generados por Excel se pueden almacenar bajo las siguientes extensiones, en función de su contenido:"]
[]
[null,null,"Tipo de archivo XML","Extensión"]
[null,null,"Libro",".xlsx"]
[null,null,"Libro con macros",".xlsm"]
[null,null,"Plantilla",".xltx"]
[null,null,"Plantilla con macros",".xltm"]
[null,"Volver al Principio"]
[]
["=>","Hoja de Cálculo"]
[null,"Cada hoja esta formada por:"]
[null,"*","Columnas (16.384):  que se nombran utilizando el orden y las   letras  del alfabeto (A, B, …, AA, …, XFD), y"]
[null,"*","Filas (1.048.576): las cuales se identifican mediante números (1, 2, 3,…. 1.048.576)."]
[null,"Volver al Principio"]
[]
["=>","Celdas"]
[null,"Llamamos Celda a la intersección de una fila y una columna."]
[]
[null,"Cada celda tiene una dirección formada:"]
[null,"*","Por la letra de la columna"]
[null,"*","y el numero de la fila"]
[]
[]
[]
[]
[null,"Se tiene un total de 17.179.869.184 celdas por cada hoja de calculo."]
[null,"Volver al Principio"]
[]
["=>","Rango"]
[null,"Un rango es un conjunto rectangular de celdas agrupadas que se identifican con la celda superior izquierda e inferior derecha."]
[]
[]
[]
[]
[]
[]
[]
[]
[]
[]
[null,"Volver al Principio"]
[]
["*","Asignar Nombres a Celdas o Rangos"]
[]
["=>","Procedimiento para asignar un nombre a una celda o rango de celdas."]
[null,1,"Seleccionar la Celda o el Rango de celdas."]
[null,2,"Asignar un Nombre a la Celda o al Rango. Esta acción se puede realizar de 2 forma:"]
[null,null,"*","En el cuadro de Nombres, ubicada en la Barra de Formulas."]
[null,null,"*","O mediante el Cuadro de Dialogo Nombre nuevo que se activa mediante la opción “Definir Nombre”, ubicado en el menú contextual de la celda o rango."]
[]
[]
[]
[]
[]
[]
[]
[]
[]
[]
[]
[]
[null,"Volver al Principio"]

{"sheet":"Tipo Datos Constantes","index":2,"n_rows":224,"n_cols":23,"rows_kept":224,"cut":false,"hidden":false,"merged":[[2,1,2,5]]}
[null,"Volver al INDICE GENERAL"]
[]
[null,"Introducción de Datos"]
[]
[null,"INDICE de CONTENIDOS"]
[null,"Tipo de Datos "]
[null,"Constantes"]
[null,"     Ejemplo 1: Constantes"]
[null,"Acerca de la Introducción de Números."]
[null,"Acerca de la Introducción de Texto"]
[null,"Acerca de la Introducción de Fechas y Horas."]
[null,"     Consideraciones sobre el tratamiento de las Fechas por Excel"]
[null,"     Consideraciones sobre el tratamiento de las Horas por Excel"]
[null,"     Resumen Consideraciones de Excel respecto a las Fechas y Horas"]
[null,"     Ejemplo 2: Cálculos con Horas"]
[null,"     Ejemplo 3: Cálculos con Horas"]
[null,"Final Índice de Contenidos"]
[]
[]
["*","Tipo de Datos "]
[]
[null,"CONSTANTES"]
[null,"*","Valores numéricos: 5, 25, 589,56."]
[null,"*","Datos alfanuméricos:  letras, palabras (a, A, Ventas)."]
[null,"*","Fecha y Hora."]
[null,"FORMULAS"]
[null,"*","Son una secuencia de valores, referencias a otras celdas, nombres, funciones u operadores . "]
[null,null,"Las fórmulas comienzan siempre con el signo igual (=)."]
[null,"Volver al Principio"]
[]
["*","Constantes"]
[null,null,null,null,null,"Ejemplos:"]
[null,"Alineación de datos dentro de la celda"]
[null,"*","Fecha y hora  => derecha"]
[null,"*","Texto              => izquierda"]
[null,"*","Números        => derecha"]
[]
[]
[null,"Volver al Principio"]
[]
["=>","Ejemplo 1: Constantes"]
[]
[null,"¿De los siguientes datos, cuales son considerados como NUMEROS por Excel?"]
[]
[null,"Legajo","Legajo","LU","LIBROS VENDIDOS","FECHA","HORAS","MESES"]
[null,"APU003300",3300,3300,100,{"$f":"$W$46","v":"2023-08-16"},"00:00:00","Enero",null,null,null,null,null,null,null,null,null,null,null,null,null,null,{"$f":"TODAY()","v":"2023-08-16"}]
[null,"APU002843",2843,2843,300,{"$f":"F46+1","v":"2023-08-17"},"01:00:00","Febrero"]
[null,"APU003316",3316,3316,50,{"$f":"F47+1","v":"2023-08-18"},"02:00:00","Marzo"]
[null,"APU003289",3289,3289,210,"2023-08-19","03:00:00","Abril"]
[null,"APU003046",3046,3046,240,"2023-08-20","04:00:00","Mayo"]
[null,"APU003020",3020,3020,90,"2023-08-21","05:00:00","Junio"]
[null,"APU003251",3251,3251,79,"2023-08-22","06:00:00","Julio"]
[null,"APU002930",2930,2930,345,"2023-08-23","07:00:00","Agosto"]
[null,"Volver al Principio"]
[]
["*","Acerca de la Introducción de Números."]
[]
[null,"*","Los números que se introducen en una celda son valores constantes."]
[null,"*","En Excel, un número puede contener sólo los siguientes caracteres: 0 1 2 3 4 5 6 7 8 9  y los signos especiales + - ( ) , / $ % . E e."]
[null,"*","Los signos (+) en los números se ignoran, y para escribir un número negativo éste tiene que ir precedido por el signo (-)."]
[]
[null,null,null,"Ejemplo:"]
[]
[null,"*","Al escribir un número entre paréntesis, Excel lo interpreta como un número negativo, lo cual es típico en contabilidad."]
[]
[null,null,null,"Ejemplo:"]
[]
[null,"*","El carácter E o e es interpretado como notación científica. Por ejemplo, 3E+08 equivale a 300000000 (3 por 10 elevado a 8)."]
[]
[null,null,null,"Ejemplo:"]
[]
[null,"*","Se pueden incluir los puntos de miles en los números introducidos como constantes."]
[]
[null,null,null,"Ejemplo:"]
[]
[null,"*","Cuando un número tiene una sola  coma delante de un numero se trata como una coma decimal."]
[]
[null,null,null,"Ejemplo:"]
[]
[null,"*","Si introducimos el símbolo % al final de un número, Excel lo considera como símbolo de porcentaje."]
[]
[null,null,null,"Ejemplo:"]
[]
[null,"*","Si introduces fracciones tales como 1/4 , 6/89 , debes escribir primero un cero para que no se confundan con números de fecha."]
[]
[null,null,null,"Ejemplo:"]
[]
[null,"*","Si un número no cabe en su celda como primera medida se pasa automáticamente a notación científica."]
[]
[null,null,null,"Ejemplo:"]
[]
[null,"*","Independientemente del número de dígitos presentados, Microsoft Excel guarda números con una precisión de hasta 15 dígitos. "]
[null,null,"Si un número contiene más de 15 dígitos significativos, Microsoft Excel convertirá los dígitos adicionales en ceros (0)."]
[]
[null,null,null,"Ejemplo:"]
[null,"Volver al Principio"]
[]
["*","Acerca de la Introducción de Texto"]
[]
[null,"*","Para introducir texto como una constante, hay que seleccionar una celda y escribir el texto. "]
[null,null,"El texto puede contener letras, dígitos y otros caracteres especiales que se puedan reproducir en la impresora."]
[null,"*","Una celda puede contener hasta 16.000 caracteres de texto."]
[null,"*","Si un texto no cabe en la celda puedes utilizar todas las adyacentes que están en blanco a su derecha para visualizarlo,"]
[null,null,"no obstante el texto se almacena únicamente en la primera celda."]
[]
[null,null,null,"Ejemplo:"]
[]
[null,"*","El texto aparece, por defecto, alineado a la izquierda en la celda."]
[]
[null,null,null,"Ejemplo:"]
[null,"Volver al Principio"]
[]
["*","Acerca de la Introducción de Fechas y Horas."]
[]
[null,"*","Para introducir una Fecha u Hora, solo hay que escribirla de la forma en que se desea que aparezca."]
[null,"*","Al igual que los números (ya que realmente lo son), las fechas y las horas también aparecen alineados a la derecha en la celda."]
[]
[null,null,null,"Ejemplo:",null,"Fecha"]
[null,null,null,"Ejemplo:",null,"Hora"]
[null,"Volver al Principio"]
[]
["=>","Consideraciones sobre el tratamiento de las Fechas por Excel"]
[]
[null,"*","Excel trata las fechas como una serie de datos que comienza el 01/01/1900."]
[null,"*","Así Excel llama número de serie al número de días transcurridos desde el 1 de enero de 1900 hasta la fecha introducida, "]
[null,null,"es decir toma la fecha inicial del sistema como el día 01/01/1900 y a partir de ahí empieza a contar, 1 de enero de 1990 es uno, 2 de enero de 1900 es dos y así sucesivamente."]
[null,"*","Ambas fechas, la seleccionada y el 1 de enero de 1900 son incluidas en la cuenta."]
[null,"*","Por ejemplo: Cuando nosotros, en una celda, vemos la fecha \"9/05/2006\", Excel \"ve\" el número 38846 que es la cantidad de días transcurridos desde el 1/01/1900 hasta el 9/05/2006."]
[null,null,null,null,"Fecha con formato dd/mm/aaa","Fecha con formato numérico"]
[null,null,null,"Fecha incial del sistema:","1900-01-01",{"$f":"E130","v":1}]
[null,null,null,null,"1900-01-02",{"$f":"E131","v":2}]
[null,null,null,null,"….",{"$f":"E132","v":"…."}]
[null,null,null,"Fecha Actual:",{"$f":"TODAY()","v":"2023-08-16"},45154,"ç","Cantidad de días transcurridos desde el 1/01/1900 hasta la fecha actual."]
[null,null,null,null,null,null,null,"Por lo tanto, es el Nro. De Serie."]
[]
[null,"*","Cuando se introduce una fecha comprendida entre los años 1929 y 2029, sólo será necesario introducir los dos últimos dígitos del año, "]
[null,null,"sin embargo para aquellas fechas que no estén comprendidas entre dicho rango, necesariamente deberemos introducir el año completo."]
[]
[null,null,null,null,"Fecha con formato dd/mm/aaa","Fecha con formato numérico"]
[null,null,null,"Ejemplo:",{"$f":"TODAY()","v":"2023-08-16"},{"$f":"E140","v":45154}]
[null,"Volver al Principio"]
[]
["=>","Consideraciones sobre el tratamiento de las Horas por Excel"]
[]
[null,"*","Excel asigna un número de serie a las horas, como una fracción de 1 día de 24 horas. "]
[null,"*","Es decir, Excel almacena las horas como fracciones decimales, ya que la hora se considera una porción del día. "]
[null,"*","El número decimal es un valor entre 0 (cero) y 0,99999999, y se corresponde con los momentos del día entre las 0:00:00 horas (12:00:00 a.m.) y las 23:59:59 horas (11:59:59 p.m.)."]
[null,"*","Así, la fracción del día que le corresponde a las 08:00 AM es:"]
[]
[null,null,null,null,null,null,null,"Horas con FORMATO hh:mm","Horas con FORMATO Numérico"]
[null,null,null,null,null,null,null,"00:00:00",0]
[null,null,null,null,null,null,null,"01:00:00",4.1666666666666664E-2]
[null,null,null,null,{"$f":"8/24","v":0.33333333333333331},null,null,"02:00:00",8.3333333333333301E-2]
[null,null,null,null,null,null,null,"03:00:00",0.125]
[null,"Ejemplo:",null,null,null,null,null,"04:00:00",0.16666666666666699]
[null,null,null,null,null,null,null,"05:00:00",0.20833333333333301]
[null,null,"Ingrese una hora como nro. Ej. 15.",null,null,null,null,"06:00:00",0.25]
[null,null,"Nro. de Serie de la hora ingresada:",{"$f":"D157/24","v":0},null,null,null,"07:00:00",0.29166666666666702]
[null,null,null,null,null,null,null,"08:00:00",0.33333333333333298]
[null,null,null,null,null,null,null,"09:00:00",0.375]
[null,null,null,null,null,null,null,"10:00:00",0.41666666666666702]
[null,null,null,null,null,null,null,"11:00:00",0.45833333333333298]
[null,null,null,null,null,null,null,"12:00:00",0.5]
[null,null,null,null,null,null,null,"13:00:00",0.54166666666666696]
[null,null,null,null,null,null,null,"14:00:00",0.58333333333333304]
[null,null,null,null,null,null,null,"15:00:00",0.625]
[null,null,null,null,null,null,null,"16:00:00",0.66666666666666696]
[null,null,null,null,null,null,null,"17:00:00",0.70833333333333304]
[null,null,null,null,null,null,null,"18:00:00",0.75]
[null,null,null,null,null,null,null,"19:00:00",0.79166666666666696]
[null,null,null,null,null,null,null,"20:00:00",0.83333333333333304]
[null,null,null,null,null,null,null,"21:00:00",0.875]
[null,null,null,null,null,null,null,"22:00:00",0.91666666666666696]
[null,null,null,null,null,null,null,"23:00:00",0.95833333333333304]
[null,"Volver al Principio"]
[]
["=>","Resumen Consideraciones de Excel respecto a las Fechas y Horas"]
[]
[]
[null,null,"Con formato dd/mm/aaaa","Con formato Numérico",null,{"$f":"NOW()","v":"2023-08-16T21:42:08.750"},"Con formato hh:mm:ss","Con formato Numérico"]
[null,"Fecha",{"$f":"TODAY()","v":"2023-08-16"},{"$f":"C181","v":45154},null,"Hora",{"$f":"MOD(F180,1)","v":"21:42:08.750"},{"$f":"G181","v":0.90426793981168885}]
[]
[]
[]
[]
[]
[null,null,null,"Con formato dd/mm/aaaa h:mm:ss","Con formato Numérico"]
[null,null,"Fecha y hora",{"$f":"NOW()","v":"2023-08-16T21:42:08.750"},{"$f":"D188","v":45154.904267939812}]
[]
[]
[]
[]
[]
[]
[null,"Volver al Principio"]
[]
["=>","Ejemplo 2: Cálculos con Horas"]
[]
[null,"Calcular cuánto me deben abonar por 4 hs de trabajo, sabiendo que por cada hora de trabajo se abona 130 $."]
[]
[]
[null,"Horas en FORMATO DE HH:MM","Horas en FORMATO NUMERICO",null,"Si multiplico:"]
[null,"04:00:00",{"$f":"B203","v":0.16666666666666666},null,"=0,1667 * 130       o         =04:00 * 130"]
[null,"Monto por Hora:",130,null,"El resultado será 21,6667  (que es un resultado poco lógico, ya que =4 hs * $130 debería dar un valor mayor)"]
[null,null,null,null,"Entonces, para poder efectuar cálculos, con las horas de Excel, previamente lo debemos multiplicar por 24:"]
[null,null,null,null,"=0,1667* 24=4        o         =4:00 * 24= 4"]
[null,"Monto a pagar:",{"$f":"(C203*24)*C204","v":520},null,"Con este ultimo dato, el 4, si puedo operar, y al multiplicarlo por 130, me daría un resultado de $ 520, éste sí es un resultado válido para mi cálculo."]
[null,"Volver al Principio"]
[]
["=>","Ejemplo 3: Cálculos con Horas"]
[]
[null,"Dada una llamada telefónica, cuya hora de inicio es 05:57:27 a.m. y cuya duración es 257 segundos. A que hora finaliza la llamada?"]
[]
[null,null,"HORA DE INICIO DE LA LLAMADA","DURACION DE LA LLAMADA EN SEG.","HORA DE FINALIZACION DE LA LLAMADA"]
[null,null,"05:57:27",257,{"$f":"C215+F221","v":"06:01:44"},"Duración de la llamada representada como la fracción de 1 día de 24 horas."]
[null,null,null,null,null,"Para obtener la hora de finalización de la llamada, se debe sumar:"]
[null,null,null,null,null,null," la Hora de inicio + la fracción del día que representan los 256 seg."]
[null,null,null,null,null,"Por lo tanto, la Hora de finalización seria: a las 06:01:44 a.m."]
[]
[]
[null,null,null,null,null,{"$f":"D215/86400","v":2.9745370370370373E-3}]
[]
[]
[null,"Volver al Principio"]

{"sheet":"Series de datos","index":3,"n_rows":211,"n_cols":41,"rows_kept":211,"cut":false,"hidden":false,"merged":[[174,1,174,2],[176,1,176,4],[176,6,176,7],[2,1,2,5],[44,2,44,5],[62,1,62,2],[62,3,62,6],[174,5,174,6]]}
[null,"Volver al INDICE GENERAL"]
[]
[null,"Serie de Datos"]
[]
[null,"INDICE de CONTENIDOS"]
[null,"SERIES: Introducción de Datos"]
[null,"     Ejemplo 4: Ingresando como Entrada de la Serie de Datos UN ELEMENTO"]
[null,"     Ejemplo 5:  Ingresando como Entrada de la Serie de Datos, 2 o MAS ELEMENTOS."]
[null,"Crear una Serie Personalizada"]
[null,"     Pasos para Crear una Serie Personalizada"]
[null,"Herramienta de Relleno de Series"]
[null,"     Diferencia entre progresión Aritmética y Geométrica"]
[null,"     Como acceder a la Herramienta de Relleno"]
[null,"     Ejemplo 6: Series ingresadas con la herramienta de relleno de series."]
[null,"Final Índice de Contenidos"]
[]
[]
["*","SERIES: Introducción de Datos"]
[]
[null,"Excel es capaz de entender ciertas entradas de texto o número como comienzos de una serie, con lo cual se podrá,"]
[null," de forma rápida, rellenar un rango con una serie escribiendo únicamente el valor inicial de la misma. "]
[null,"La forma de realizar un llenado rápido es: "]
[null,"*","Seleccionar la celda o celdas que determinen el comienzo de la serie."]
[null,"*","Realizar un llenado arrastrando el cuadro de llenado (situar el cursor en el cuadrado de la esquina inferior derecha, "]
[null,null,"el cursor se convierte en una cruz negra) a lo largo de una fila o una columna. La serie se repetirá a lo largo de la "]
[null,null,"fila o columna tantas veces sea necesario para completar las celdas seleccionadas."]
[]
[]
[]
[]
[]
[]
[]
[]
[]
[]
[]
[null,"Volver al Principio"]
[]
["=>","Ejemplo 4: Ingresando como Entrada de la Serie de Datos UN ELEMENTO"]
[]
[null,"Alguna de las entradas que entiende como comienzos de serie son:"]
[]
[]
[null,"Entrada de la serie  (una sola celda)","Serie obtenida después del llenado"]
[null,"10:00:00","11:00:00","12:00:00","13:00:00","14:00:00"]
[null,"Lunes"]
[null,"Enero"]
[null,"Producto 1"]
[null,"Texto 1"]
[null,"1er periodo"]
[]
[null,"Volver al Principio"]
[]
["=>","Ejemplo 5:  Ingresando como Entrada de la Serie de Datos, 2 o MAS ELEMENTOS."]
[]
[]
[null,"Una forma mas interesante de utilizar el botón de llenado es poner datos en las dos primeras celdas de la serie."]
[null," Excel analiza estos dos primeros datos y completa el resto de los datos con una progresión "]
[null,"aritmética (es una serie de nros, tales que la diferencia de 2 términos sucesivos cualesquiera de la secuencia es una cte.)."]
[]
[]
[null,"Entrada de la serie (varias celdas consecutivas)",null,"Serie"]
[null,"2020-01-01","2020-03-01","2020-05-01","2020-07-01","2020-09-01","2020-11-01"]
[null,"2020-01-15","2020-02-15"]
[null,1994,1995]
[null,1,2]
[null,50,55]
[]
[null,"Volver al Principio"]
[]
["*","Crear una Serie Personalizada"]
[]
[null,"Una serie de relleno personalizada es un conjunto de datos que se utiliza para rellenar una columna siguiendo una pauta que se repite; "]
[null,"Por ejemplo, Norte, Sur, Este, Oeste. "]
[null,"Podrá crear una serie de relleno a partir de elementos existentes listados en una hoja de cálculo, o bien crear la lista desde cero ingresando al Cuadro de Dialogo «Listas Personalizadas»."]
[]
[null,"Volver al Principio"]
[]
["=>","Pasos para Crear una Serie Personalizada"]
[]
[]
[]
[]
[]
[]
[]
[]
[]
[]
[]
[]
[]
[]
[]
[]
[]
[]
[]
[]
[]
[]
[]
[]
[]
[null,"Volver al Principio"]
[]
["*","Herramienta de Relleno de Series"]
[]
[null,"Otra forma de ingresar series de datos es la Herramienta de Relleno de Series."]
[null,"Mediante esta herramienta, podemos ingresar Series de Datos: "]
[null,null,"*","Lineales o Aritméticas,"]
[null,null,"*","Geométricas, "]
[null,null,"*","Cronológicas,.."]
[]
[null,"Volver al Principio"]
[]
["=>","Diferencia entre progresión Aritmética y Geométrica"]
[]
[null,"*","Una progresión aritmética (o lineal) es una sucesión de números en la que cada número es igual al anterior más una constante. "]
[null,null,"Un ejemplo de progresión aritmética podría ser 100, 102, 104, 106, 108, 110, etc. Cada número es igual al anterior más 2. "]
[]
[null,null,"Constante:",2]
[]
[null,null,null,null,{"$f":"D128","v":100},{"$f":"E128","v":102},104,106,108]
[null,null,null,null,{"$f":"$D$123","v":2},{"$f":"$D$123","v":2},{"$f":"$D$123","v":2},{"$f":"$D$123","v":2},{"$f":"$D$123","v":2}]
[null,null,null,null,"ê","ê","ê","ê","ê"]
[null,null,null,100,{"$f":"D128+$D$123","v":102},{"$f":"E128+$D$123","v":104},106,108,110,"….."]
[]
[null,"*","Una progresión geométrica es una sucesión de números en la que cada número es igual al anterior multiplicado por una constante. "]
[]
[null,null,"Constante:",2]
[]
[null,null,null,null,{"$f":"D137","v":2},{"$f":"E137","v":4},8,16,32]
[null,null,null,null,{"$f":"$D$132","v":2},{"$f":"$D$132","v":2},{"$f":"$D$132","v":2},{"$f":"$D$132","v":2},{"$f":"$D$132","v":2}]
[null,null,null,null,"ê","ê","ê","ê","ê"]
[null,null,null,2,{"$f":"D137*$D$132","v":4},{"$f":"E137*$D$132","v":8},16,32,64,"….."]
[]
[null,"*","La principal diferencia práctica es que la progresión geométrica crece mucho más rápidamente que la aritmética. "]
[null,"Volver al Principio"]
[]
["=>","Como acceder a la Herramienta de Relleno"]
[]
[]
[]
[]
[]
[]
[]
[]
[]
[]
[]
[]
[]
[]
[]
[]
[]
[]
[]
[]
[]
[]
[]
[]
[]
[]
[]
[null,"Volver al Principio"]
[]
["=>","Ejemplo 6: Series ingresadas con la herramienta de relleno de series."]
[null,null,null,null,null,null,null,null,null,null,null,null,null,null,null,null,null,null,null,null,null,null,null,null,null,null,"DIA","MES","AÑO","FECHA","DIA",null,"1ER LUNES DEL MES DE DIC"]
[null,{"$f":"YEAR(TODAY())","v":2023},null,null,null,null,null,null,null,null,null,null,null,null,null,null,null,null,null,null,null,null,null,null,null,null,1,12,{"$f":"$B$174","v":2023},{"$f":"DATE(AC174,AB174,AA174)","v":"2023-12-01"},{"$f":"VLOOKUP(WEEKDAY(AD174,2),$AN$179:$AO$185,2,FALSE)","v":"VIERNES"},null,{"$f":"INDEX(AD174:AD204,MATCH(\"LUNES\",AE174:AE204,0))","v":"2023-12-04"}]
[null,{"$f":"\"1er dia Habil de Diciembre de \"&B174","v":"1er dia Habil de Diciembre de 2023"},null,{"$f":"AG176","v":"2023-12-01"},null,{"$f":"\"1er Lunes de Diciembre de \"&B174","v":"1er Lunes de Diciembre de 2023"},null,{"$f":"AG174","v":"2023-12-04"},null,null,null,null,null,null,null,null,null,null,null,null,null,null,null,null,null,null,2,12,{"$f":"$B$174","v":2023},{"$f":"DATE(AC175,AB175,AA175)","v":"2023-12-02"},{"$f":"VLOOKUP(WEEKDAY(AD175,2),$AN$179:$AO$185,2,FALSE)","v":"SÁBADO"},null,"1ER DIA HABIL DEL MES DE DIC"]
[null,null,null,null,null,null,null,null,null,null,null,null,null,null,null,null,null,null,null,null,null,null,null,null,null,null,3,12,2023,"2023-12-03","DOMINGO",null,{"$f":"IF(AE174=\"SÁBADO\",AD176,IF(AE174=\"DOMINGO\",AD175,AD174))","v":"2023-12-01"}]
[null,"SERIES DE FECHAS",null,null,null,"SERIES DE PORCENTAJE","SERIES DE NUMEROS",null,null,null,null,null,null,null,null,null,null,null,null,null,null,null,null,null,null,null,4,12,2023,"2023-12-04","LUNES"]
[null,{"$f":"\"Dias de diciembre del \" &B174","v":"Dias de diciembre del 2023"},{"$f":"\"Dias laborables de diciembre del \"&B174","v":"Dias laborables de diciembre del 2023"},{"$f":"\"Lunes de diciembre del \"&B174","v":"Lunes de diciembre del 2023"},{"$f":"\"Primer día de cada mes del \"&B174","v":"Primer día de cada mes del 2023"},"Tipos de interés","Progresión aritmética","Progresión geométrica",null,null,null,null,null,null,null,null,null,null,null,null,null,null,null,null,null,null,5,12,2023,"2023-12-05","MARTES"]
[null,"2023-12-01","2023-12-01","2023-12-01","2023-01-01",0.02,1,1,null,null,null,null,null,null,null,null,null,null,null,null,null,null,null,null,null,null,6,12,2023,"2023-12-06","MIÉRCOLES",null,null,null,null,null,null,null,null,1,"LUNES"]
[null,"2023-12-02","2023-12-04","2023-12-12","2023-02-01",0.04,3,2,null,null,null,null,null,null,null,null,null,null,null,null,null,null,null,null,null,null,7,12,2023,"2023-12-07","JUEVES",null,null,null,null,null,null,null,null,2,"MARTES"]
[null,"2023-12-03","2023-12-05","2022-12-21","2023-03-01",0.06,5,4,null,null,null,null,null,null,null,null,null,null,null,null,null,null,null,null,null,null,8,12,2023,"2023-12-08","VIERNES",null,null,null,null,null,null,null,null,3,"MIÉRCOLES"]
[null,"2023-12-04","2023-12-06","2021-12-30","2023-04-01",0.08,7,8,null,null,null,null,null,null,null,null,null,null,null,null,null,null,null,null,null,null,9,12,2023,"2023-12-09","SÁBADO",null,null,null,null,null,null,null,null,4,"JUEVES"]
[null,"2023-12-05","2023-12-07",null,"2023-05-01",0.1,9,16,null,null,null,null,null,null,null,null,null,null,null,null,null,null,null,null,null,null,10,12,2023,"2023-12-10","DOMINGO",null,null,null,null,null,null,null,null,5,"VIERNES"]
[null,"2023-12-06","2023-12-08",null,"2023-06-01",0.12,11,32,null,null,null,null,null,null,null,null,null,null,null,null,null,null,null,null,null,null,11,12,2023,"2023-12-11","LUNES",null,null,null,null,null,null,null,null,6,"SÁBADO"]
[null,"2023-12-07","2023-12-11",null,"2023-07-01",0.14000000000000001,13,64,null,null,null,null,null,null,null,null,null,null,null,null,null,null,null,null,null,null,12,12,2023,"2023-12-12","MARTES",null,null,null,null,null,null,null,null,7,"DOMINGO"]
[null,"2023-12-08","2023-12-12",null,"2023-08-01",0.16,15,128,null,null,null,null,null,null,null,null,null,null,null,null,null,null,null,null,null,null,13,12,2023,"2023-12-13","MIÉRCOLES"]
[null,"2023-12-09","2023-12-13",null,"2023-09-01",0.18,17,256,null,null,null,null,null,null,null,null,null,null,null,null,null,null,null,null,null,null,14,12,2023,"2023-12-14","JUEVES"]
[null,"2023-12-10","2023-12-14",null,"2023-10-01",0.2,19,512,null,null,null,null,null,null,null,null,null,null,null,null,null,null,null,null,null,null,15,12,2023,"2023-12-15","VIERNES"]
[null,"2023-12-11","2023-12-15",null,"2023-11-01",0.22,21,768,null,null,null,null,null,null,null,null,null,null,null,null,null,null,null,null,null,null,16,12,2023,"2023-12-16","SÁBADO"]
[null,"2023-12-12","2023-12-18",null,"2023-12-01",0.24,23,1024,null,null,null,null,null,null,null,null,null,null,null,null,null,null,null,null,null,null,17,12,2023,"2023-12-17","DOMINGO"]
[null,"2023-12-13","2023-12-19",null,null,0.26,25,1280,null,null,null,null,null,null,null,null,null,null,null,null,null,null,null,null,null,null,18,12,2023,"2023-12-18","LUNES"]
[null,"2023-12-14","2023-12-20",null,null,null,null,null,null,null,null,null,null,null,null,null,null,null,null,null,null,null,null,null,null,null,19,12,2023,"2023-12-19","MARTES"]
[null,"2023-12-15","2023-12-21",null,null,null,null,null,null,null,null,null,null,null,null,null,null,null,null,null,null,null,null,null,null,null,20,12,2023,"2023-12-20","MIÉRCOLES"]
[null,"2023-12-16","2023-12-22",null,null,null,null,null,null,null,null,null,null,null,null,null,null,null,null,null,null,null,null,null,null,null,21,12,2023,"2023-12-21","JUEVES"]
[null,"2023-12-17","2023-12-25",null,null,null,null,null,null,null,null,null,null,null,null,null,null,null,null,null,null,null,null,null,null,null,22,12,2023,"2023-12-22","VIERNES"]
[null,"2023-12-18","2023-12-26",null,null,null,null,null,null,null,null,null,null,null,null,null,null,null,null,null,null,null,null,null,null,null,23,12,2023,"2023-12-23","SÁBADO"]
[null,"2023-12-19","2023-12-27",null,null,null,null,null,null,null,null,null,null,null,null,null,null,null,null,null,null,null,null,null,null,null,24,12,2023,"2023-12-24","DOMINGO"]
[null,"2023-12-20","2023-12-28",null,null,null,null,null,null,null,null,null,null,null,null,null,null,null,null,null,null,null,null,null,null,null,25,12,2023,"2023-12-25","LUNES"]
[null,"2023-12-21","2023-12-29",null,null,null,null,null,null,null,null,null,null,null,null,null,null,null,null,null,null,null,null,null,null,null,26,12,2023,"2023-12-26","MARTES"]
[null,"2023-12-22","2022-12-30",null,null,null,null,null,null,null,null,null,null,null,null,null,null,null,null,null,null,null,null,null,null,null,27,12,2023,"2023-12-27","MIÉRCOLES"]
[null,"2023-12-23","2021-12-31",null,null,null,null,null,null,null,null,null,null,null,null,null,null,null,null,null,null,null,null,null,null,null,28,12,2023,"2023-12-28","JUEVES"]
[null,"2023-12-24",null,null,null,null,null,null,null,null,null,null,null,null,null,null,null,null,null,null,null,null,null,null,null,null,29,12,2023,"2023-12-29","VIERNES"]
[null,"2023-12-25",null,null,null,null,null,null,null,null,null,null,null,null,null,null,null,null,null,null,null,null,null,null,null,null,30,12,2023,"2023-12-30","SÁBADO"]
[null,"2023-12-26",null,null,null,null,null,null,null,null,null,null,null,null,null,null,null,null,null,null,null,null,null,null,null,null,31,12,2023,"2023-12-31","DOMINGO"]
[null,"2023-12-27"]
[null,"2023-12-28"]
[null,"2023-12-29"]
[null,"2023-12-30"]
[null,"2023-12-31"]
[]
[null,"Volver al Principio"]

{"sheet":"Formato Estandar","index":4,"n_rows":53,"n_cols":5,"rows_kept":53,"cut":false,"hidden":false,"merged":[[2,1,2,5]]}
[null,"Volver al INDICE GENERAL"]
[]
[null,"Formato Estándar"]
[]
[null,"INDICE de CONTENIDOS"]
[null,"Menú Formato Celda"]
[null,"     Ejemplo Formato de celdas - Ficha Numero:"]
[null,"Final Índice de Contenidos"]
[]
[]
["*","Menú Formato Celda"]
[]
[null,"El Menú Formato/Celda permite aplicar distintas opciones de formato a la celda o rango de celdas seleccionadas. "]
[null,"Una vez seleccionado la celda/s, el cuadro de diálogo Formato de celdas se visualiza mediante el menú contextual;"]
[null," dicho cuadro presenta seis fichas (Número, Alineación, Fuentes, Bordes, Diseño y Protección), que permiten acceder a las distintas opciones de formato de celdas."]
[]
[]
[]
[]
[]
[]
[]
[]
[]
[]
[]
[]
[]
[]
[]
[]
[]
[]
[]
[null,"Volver al Principio"]
[]
["=>","Ejemplo Formato de celdas - Ficha Numero:"]
[]
[null,null,null,"Ingresar un Numero:",0.5]
[]
[]
[null,null,null,"Numero con Formato General:",{"$f":"$E$39","v":0.5}]
[null,null,null,"Numero con Formato Numero:",{"$f":"$E$39","v":0.5}]
[null,null,null,"Numero con Formato Moneda:",0.5]
[null,null,null,"Numero con Formato Contabilidad:",0.5]
[null,null,null,"Numero con Formato Porcentaje:",0.5]
[null,null,null,"Numero con Formato Fracción:",0.5]
[null,null,null,"Numero con Formato Científica:",0.5]
[null,null,null,"Numero con Formato Texto:",0.5]
[]
[]
[]
[null,"Volver al Principio"]

{"sheet":"Formato Personalizado NUMEROS","index":5,"n_rows":358,"n_cols":8,"rows_kept":358,"cut":false,"hidden":false,"merged":[[308,1,308,6],[310,1,310,6],[2,1,2,5]]}
[null,"Volver al INDICE GENERAL"]
[]
[null,"Formato Personalizado de Números"]
[]
[null,"INDICE de CONTENIDOS"]
[null,"Introducción"]
[null,"Estructura general para asignar Formato personalizado "]
[null,"     Símbolos para el formato personalizados de números"]
[null,"Como asignamos Formato personalizado a las celdas en Excel?"]
[null,"     Ejemplo 1: Aplicación de Formato Personalizado"]
[null,"     Ejemplo 2: Definir el formato personalizado para la siguiente especificación."]
[null,"     Ejemplo 3:  Formato personalizado con condiciones"]
[null,"     Ejemplo 4: Configurar el Formato Personalizado para las siguientes consignas."]
[null,"     Ejemplo 5: Formato de números con el texto Millones de Pesos."]
[null,"     Ejemplo 6: Formato personalizado condicional para datos horarios."]
[null,"     Ejemplo 7: Formato de números de Facturas."]
[null,"     Ejemplo 8: Formato de números de Expedientes."]
[null,"     Ejemplo 9: Formato de números con unidades de metros cúbicos (m³)."]
[null,"Final Índice de Contenidos"]
[]
[]
["*","Introducción"]
[]
[null,"*"," Cuando hablamos de formato de números nos referimos a como se ve un número en una celda de Excel. "]
[null,null,"Al cambiar el formato de un número en una hoja de Excel, sólo estamos cambiando la forma en que Excel exhibe el número. "]
[null,null,"El número en si mismo no cambia."]
[null,"*","Por ejemplo, la forma en que Excel exhibe las fechas. Cuando nosotros en una celda vemos la fecha \"9/05/2006\" en una celda, "]
[null,null,"Excel \"ve\" el número 38846 que es la cantidad de días transcurridos desde el 1/01/1900 hasta el 9/05/2006."]
[null,"*","Excel viene provisto con una gran cantidad de formatos para números, pero es posible "]
[null,null,"que en algún momento necesitemos algún formato que no este disponible en los estándares de Excel."]
[null,"*","Por ejemplo: una entrada de datos para ingresar el numero de factura que empieza con muchos ceros (Ej. 0000001)."]
[null,null,"Para subsanar esta carencia Excel dispone de una herramientas para crear formatos personalizados."]
[]
[null,"Volver al Principio"]
[]
["*","Estructura general para asignar Formato personalizado "]
[]
[null,"*","Para crear un formato de número personalizado,  debemos conocer las reglas de los códigos para crear un formato."]
[null,"*","La estructura general del formato se compone de 4 secciones separadas por punto y coma (;).  "]
[null,null,"Cada sección define el formato del numero según este sea positivo, negativo, cero o texto."]
[]
[null,null,"NROS POSITIVOS; NROS NEGATIVOS; CEROS; TEXTO "]
[]
[null,"Volver al Principio"]
[]
["=>","Símbolos para el formato personalizados de números"]
[]
[null,null,"0 : Reserva un dígito para un número, si no se completa el tamaño definido por el formato se completa con ceros."]
[null,null,"# : Reserva un dígito para un número, pero si no se completa el tamaño definido por el formato se deja en blanco."]
[null,null,". : Punto decimal."]
[null,null,"% : Símbolo porcentual."]
[null,null,", : Separador de millares."]
[null,null,"E- E+ e- e+ : Notación científica."]
[null,null,"$ - + / ( ) : : Muestra estos caracteres. No necesitan comillas."]
[null,null,"\\ : Muestra el siguiente caracter en el formato."]
[null,null,"* : Repite el siguiente caracter hasta completar el ancho de la celda."]
[null,null,"\"texto\" : Muestra el texto escrito entre la comillas dobles."]
[null,null,"[color] : Muestra el caracter en el color especificado. Puede ser Negro, Azul, Cian, Verde, Magenta, Verde, Rojo y Amarillo."]
[null,null,"[color n] : Muestra el correspondiente color de la paleta de colores, n puede ser un número entre 0 y 56."]
[null,null,"[valor condición] : Permite escoger tu propio criterio para cada sección de un formato numérico."]
[]
[]
[null,null,"Ejemplos"]
[null,null,"Símbolo utilizado","Ejemplo de formato personalizado aplicado","Numero ingresado sin formato","Numero ingresado con formato personalizado"]
[null,null,0,{"$f":"[1]!ForCelda(F65)","v":"0,00"},5,{"$f":"E65","v":5}]
[null,null,0,{"$f":"[1]!ForCelda(F66)","v":"000,00"},5,5]
[null,null,"#",{"$f":"[1]!ForCelda(F67)","v":"#,##"},5,5]
[null,null,"#",{"$f":"[1]!ForCelda(F68)","v":"#,##"},5.6,5.6]
[null,null,"0 y #",{"$f":"[1]!ForCelda(F69)","v":"#,00"},5,5]
[null,null,"0 y #",{"$f":"[1]!ForCelda(F70)","v":"#.###,00"},1500,1500]
[null,null,"0 y texto",{"$f":"[1]!ForCelda(F71)","v":"0,00 \"m³\""},3,3,"Formato para unidades de metro cubico"]
[null,null,"0 y texto",{"$f":"[1]!ForCelda(F72)","v":"0000 \"/\" 00"},205117,205117,"Formato para numero de expediente"]
[null,null,"Condicional",{"$f":"[1]!ForCelda(F73)","v":"[>1000000] #.###.. \"Mill de Pesos\";General"},8317041819,8317041819,"Formato para numero con el texto Millones de Pesos"]
[]
[null,"Volver al Principio"]
[]
["*","Como asignamos Formato personalizado a las celdas en Excel?"]
[]
[null,null,"Para asignar un formato personalizado a una celda en Excel debemos hacer clic derecho"]
[null,null," sobre la celda deseada y seleccionar la opción Formato de celdas. "]
[null,null,"Al mostrarse el cuadro de diálogo se debe activar la sección Número y elegir la opción Personalizada:"]
[]
[]
[]
[]
[]
[]
[]
[]
[]
[]
[]
[]
[]
[]
[]
[]
[]
[]
[]
[]
[]
[]
[]
[]
[null,"Volver al Principio"]
[]
["=>","Ejemplo 1: Aplicación de Formato Personalizado"]
[]
[]
[null,null,"$#,##[Verde];(0,00$)[Rojo];\"Cero\";\"“"]
[]
[null,"Este formato contiene cuatro secciones separadas por el signo de punto y coma y utiliza un formato diferente para cada sección. "]
[]
[null,"Con este formato estamos indicando que:"]
[null,"*","Los números positivos (primera sección): se escriben en verde, llevan el signo de pesos delante, no se muestran los ceros no significativos y solo se muestran 2 decimales (#,##); "]
[null,"*","Los números negativos: se escriben en rojo, entre paréntesis con el $ detrás y con dos decimales siempre; "]
[null,"*","Los valores cero se sustituyen por la palabra cero y "]
[null,"*","Los textos se sustituyen por la cadena nula, es decir que si en la celda hay texto, ese texto desaparecerá."]
[]
[]
[null,null,"Ingrese un numero:"]
[null,null,"Formato Aplicado a la Celda:",{"$f":"[1]!ForCelda(D122)","v":"[Verde]$#,##;[Rojo](0,00$);\"Cero\";\"\""}]
[]
[]
[null,"Volver al Principio"]
[]
["=>","Ejemplo 2: Definir el formato personalizado para la siguiente especificación."]
[]
[null,null,"Un numero con puntos en los miles, dos decimales, "]
[null,null,"que los números negativos se visualicen en color azul y con signo menos delante "]
[null,null,"y los valores cero se visualicen con una raya en lugar del numero cero."]
[]
[]
[null,null,"Solución"]
[]
[null,null,"#.##0,00;[azul] -#.##0,00;-",null,"1era Sección: FORMATO DE NUMEROS POSITIVOS"]
[null,null,null,null,"2da Sección: FORMATO DE NUMEROS NEGATIVOS"]
[null,null,null,null,"3era Sección: FORMATO DE CEROS"]
[]
[]
[]
[]
[]
[null,null,"Ingrese un numero:"]
[null,null,"Formato Aplicado a la Celda:",{"$f":"[1]!ForCelda(D145)","v":"#.##0,00;[Azul] -#.##0,00;-"}]
[]
[]
[]
[null,null,"Cuando cree formatos personalizados, tenga en cuenta que el símbolo # produce visualización cuando el numero existe (opcional), "]
[null,null,"mientras que el símbolo 0 produce visualización siempre (obligatorio). "]
[null,null,"Por ejemplo, 7,2 con formato #.###,## se visualizara 7,2; mientras que con formato 0000,00 se visualizará 0007,20."]
[]
[null,"Volver al Principio"]
[]
["=>","Ejemplo 3:  Formato personalizado con condiciones"]
[]
[null,null,"También se pueden establecer condiciones de formato entre corchetes [ ]. Por ejemplo, en el formato:"]
[null,null,null,"[<100] [rojo] 0,00; [>1000][verde] (0,00);[azul]0,00"]
[null,"*","La primera sección: formatea los números menores de 100, "]
[null,"*","La segunda sección: los números mayores de 1000, y "]
[null,"*","La tercera sección el resto de los números."]
[]
[]
[]
[null,null,"Ingrese un numero:"]
[null,null,"Formato Aplicado a la Celda:",{"$f":"[1]!ForCelda(D166)","v":"[Rojo][<100]  0,00;[Verde][>1000]  (0,00);[Azul]0,00"}]
[]
[]
[null,null,"NOTA: El formato numérico condicional está limitado a tres criterios!!!"]
[]
[null,"Volver al Principio"]
[]
["=>","Ejemplo 4: Configurar el Formato Personalizado para las siguientes consignas."]
[]
[]
[null,null,"1. Dar formato a una celda para que presente el número con separador de miles, "]
[null,null,"si el contenido no es un número debe presentar el siguiente mensaje de error, \"Error debe ser número\". "]
[null,null,"La solución sería: "]
[]
[null,null,null,"#.###; #.###;0;\" Error debe ser número\" "]
[]
[]
[null,null,"Ingrese un valor:"]
[null,null,"Formato Aplicado a la Celda:",{"$f":"[1]!ForCelda(D184)","v":"#.###; #.###;0;\" Error debe ser número\""}]
[]
[]
[]
[null,null,"2.  Formatear una celda de modo: si un número es mayor que 1000 presente su contenido en verde, de lo contrario que lo presente en rojo. "]
[null,null,"La solución sería: "]
[]
[null,null,null,"[>1000][verde]#.##0;[<1000][rojo]#.##0 "]
[]
[]
[null,null,"Ingrese un valor:"]
[null,null,"Formato Aplicado a la Celda:",{"$f":"[1]!ForCelda(D195)","v":"[Verde][>1000]#.##0;[Rojo][<1000]#.##0"}]
[]
[]
[null,null,"¿Qué pasaría si introducimos el número 1000? ¿Cómo lo solucionarías? "]
[]
[]
[null,null,null,"Ingrese un valor:"]
[null,null,null,"Formato Aplicado a la Celda:",{"$f":"[1]!ForCelda(E202)","v":"[Verde][>1000]#.##0;[Rojo] #.##0"}]
[]
[]
[null,null,"3. Formatear una celda de modo que indique si un número es positivo, negativo, cero o un texto. "]
[null,null,"La solución sería: "]
[]
[null,null,null,"\"Positivo\";\"Negativo\";\"Cero\";\"Texto\" "]
[]
[]
[null,null,"Ingrese un valor:"]
[null,null,"Formato Aplicado a la Celda:",{"$f":"[1]!ForCelda(D212)","v":"\"POSITIVO\";\"NEGATIVO\";\"CERO\";\"TEXTO\""}]
[]
[]
[null,"Volver al Principio"]
[]
["=>","Ejemplo 5: Formato de números con el texto Millones de Pesos."]
[]
[]
[null,null,"Solución"]
[null,null,null,"[>1000000] #.###.. \"Mill de Pesos\";General"]
[]
[]
[null,null,"Ingrese un valor >1000000:"]
[null,null,"Formato Aplicado a la Celda:",{"$f":"[1]!ForCelda(D225)","v":"[>1000000] #.###.. \"Mill de Pesos\";General"}]
[]
[]
[]
[]
[null,null,"Datos con formato numérico","Datos con formato personalizado"]
[null,null,"RECAUDACION","RECAUDACION"]
[null,null,8317041819,8317041819,"\u009bCelda con Formato personalizado de números con el texto Millones de Pesos"]
[null,null,8599064144,8599064144]
[null,null,3137313175,3137313175]
[null,null,182766703,182766703]
[null,null,5293092217,5293092217]
[null,null,4821357357,4821357357]
[null,null,930943869,930943869]
[null,null,3109810179,3109810179]
[null,null,6964453597,6964453597]
[null,null,5853078643,5853078643]
[null,null,4157644759,4157644759]
[null,null,2822617508,2822617508]
[null,null,8987441214,8987441214]
[null,null,8683904329,8683904329]
[null,null,3348127106,3348127106]
[null,null,651478145,651478145]
[null,null,803965457,803965457]
[null,null,8432733977,8432733977]
[null,null,5396010002,5396010002]
[null,null,7742910986,7742910986]
[]
[null,"Volver al Principio"]
[]
["=>","Ejemplo 6: Formato personalizado condicional para datos horarios."]
[]
[null,null,"Se aplica formato personalizado para los datos horario, de manera que en función de la hora del día se vizualice el texto mañana, tarde o noche respectivamente."]
[null,null,"Por ejemplo, a las 11:00 am se debe mostrar el texto \"Mañana\""]
[]
[null,null,"Solución"]
[null,null,null,"[<=0,5] \"mañana\";[<=0,75] \"tarde\"; \"noche\""]
[]
[]
[null,null,"Ingrese una Hora:"]
[null,null,"Formato Aplicado a la Celda:",{"$f":"[1]!ForCelda(D265)","v":"[<=0,5] \"mañana\";[<=0,75] \"tarde\"; \"noche\""}]
[]
[]
[]
[null,null,"Horas con FORMATO hh:mm","Horas con FORMATO NUMERICO","FORMATO PERSONALIZADO CON CONDICION"]
[null,null,"00:00:00",0,0,"Celda con formato personalizado condicional para datos horarios"]
[null,null,"01:00:00",4.1666666666666664E-2,4.1666666666666664E-2]
[null,null,"02:00:00",8.3333333333333301E-2,8.3333333333333301E-2]
[null,null,"03:00:00",0.125,0.125]
[null,null,"04:00:00",0.16666666666666699,0.16666666666666699]
[null,null,"05:00:00",0.20833333333333301,0.20833333333333301]
[null,null,"06:00:00",0.25,0.25]
[null,null,"07:00:00",0.29166666666666702,0.29166666666666702]
[null,null,"08:00:00",0.33333333333333298,0.33333333333333298]
[null,null,"09:00:00",0.375,0.375]
[null,null,"10:00:00",0.41666666666666702,0.41666666666666702]
[null,null,"11:00:00",0.45833333333333298,0.45833333333333298]
[null,null,"12:00:00",0.5,0.5]
[null,null,"13:00:00",0.54166666666666696,0.54166666666666696]
[null,null,"14:00:00",0.58333333333333304,0.58333333333333304]
[null,null,"15:00:00",0.625,0.625]
[null,null,"16:00:00",0.66666666666666696,0.66666666666666696]
[null,null,"17:00:00",0.70833333333333304,0.70833333333333304]
[null,null,"18:00:00",0.75,0.75]
[null,null,"19:00:00",0.79166666666666696,0.79166666666666696]
[null,null,"20:00:00",0.83333333333333304,0.83333333333333304]
[null,null,"21:00:00",0.875,0.875]
[null,null,"22:00:00",0.91666666666666696,0.91666666666666696]
[null,null,"23:00:00",0.95833333333333304,0.95833333333333304]
[]
[null,"Volver al Principio"]
[]
["=>","Ejemplo 7: Formato de números de Facturas."]
[]
[null,null,"Solución"]
[null,null,null,"000000000"]
[]
[]
[null,null,"Ingrese un Nro. De Factura:"]
[null,null,"Formato Aplicado a la Celda:",{"$f":"[1]!ForCelda(D304)","v":"000000000"}]
[]
[]
[]
[null,"FACTURA"]
[]
[null,"Empresa USM"]
[]
[null,"Cliente",null,null,null,"Numero de Factura:",4,"Celda con formato de números de facturas"]
[]
[null,"Fecha:",{"$f":"NOW()","v":"2023-08-16T21:42:08.750"}]
[]
[null,"Código","Descripción","Cantidad ","Precio/Unit","Precio Total"]
[]
[]
[]
[]
[]
[]
[]
[]
[]
[null,null,null,null,"Subtotal"]
[null,null,null,null,"IVA 19%"]
[]
[null,null,null,null,"TOTAL"]
[]
[]
[null,"Volver al Principio"]
[]
["=>","Ejemplo 8: Formato de números de Expedientes."]
[]
[null,null,"Solución"]
[null,null,null,"0000 \"/\" 00"]
[]
[]
[null,null,"Ingrese un Nro. de expediente:"]
[null,null,"Formato Aplicado a la Celda:",{"$f":"[1]!ForCelda(D341)","v":"0000 \"/\" 00"}]
[]
[]
[null,"Volver al Principio"]
[]
["=>","Ejemplo 9: Formato de números con unidades de metros cúbicos (m³)."]
[]
[null,null,"Solución"]
[null,null,null,"0,00 \"m³\""]
[]
[]
[null,null,"Ingrese un Valor: "]
[null,null,"Formato Aplicado a la Celda:",{"$f":"[1]!ForCelda(D353)","v":"0,00 \"m³\""}]
[]
[]
[]
[null,"Volver al Principio"]

{"sheet":"Formato Person FECHAS y HORAS","index":6,"n_rows":117,"n_cols":13,"rows_kept":117,"cut":false,"hidden":false,"merged":[[2,1,2,4],[61,3,61,4],[83,1,83,3],[52,3,52,4],[53,3,53,4],[54,3,54,4],[55,3,55,4],[56,3,56,4],[57,3,57,4],[58,3,58,4],[59,3,59,4],[60,3,60,4]]}
[null,"Volver al INDICE GENERAL"]
[]
[null,"Formato Personalizado de Fecha y Hora"]
[]
[null,"INDICE de CONTENIDOS"]
[null,"Formato Personalizado de Fecha"]
[null,"     Simbología para Formato personalizado de FECHAS"]
[null,"     Ejemplos de formatos de Fechas"]
[null,"Formato Personalizado de Horas"]
[null,"     Simbología para Formato personalizado de HORAS"]
[null,"     Ejemplos de formato de Horas."]
[null,"     Ejercicio: Uso del Formato [hh]"]
[null,"Ejemplos formatos personalizados de FECHAS y HORAS"]
[null,"Final Índice de Contenidos"]
[]
[]
["*","Formato Personalizado de Fecha"]
["=>","Simbología para Formato personalizado de FECHAS"]
[]
[null,null,"Para mostrar","Use este código","Fecha ingresada","Fecha ingresada con el formato aplicado"]
[null,null,"Los meses como 1-12",{"$f":"[1]!ForCelda(F21)","v":"m"},{"$f":"TODAY()","v":"2023-08-16"},{"$f":"TODAY()","v":"2023-08-16"}]
[null,null,"Los meses como 01-12",{"$f":"[1]!ForCelda(F22)","v":"mm"},{"$f":"TODAY()","v":"2023-08-16"},"2023-08-16"]
[null,null,"Los meses como ene-dic",{"$f":"[1]!ForCelda(F23)","v":"mmm"},"2023-08-16","2023-08-16"]
[null,null,"Los meses como enero-diciembre",{"$f":"[1]!ForCelda(F24)","v":"mmmm"},"2023-08-16","2023-08-16"]
[null,null,"Los meses como la inicial de cada mes",{"$f":"[1]!ForCelda(F25)","v":"mmmmm"},"2023-08-16","2023-08-16"]
[null,null,"Los días como 1-31",{"$f":"[1]!ForCelda(F26)","v":"d"},"2023-08-16","2023-08-16"]
[null,null,"Los días como 01-31",{"$f":"[1]!ForCelda(F27)","v":"dd"},"2023-08-16","2023-08-16"]
[null,null,"Los días como dom-sáb",{"$f":"[1]!ForCelda(F28)","v":"ddd"},"2023-08-16","2023-08-16"]
[null,null,"Los días como domingo-sábado",{"$f":"[1]!ForCelda(F29)","v":"dddd"},"2023-08-16","2023-08-16"]
[null,null,"Los años como 00-99",{"$f":"[1]!ForCelda(F30)","v":"yy"},"2023-08-16","2023-08-16"]
[null,null,"Los años como 1900-9999",{"$f":"[1]!ForCelda(F31)","v":"yyyy"},"2023-08-16","2023-08-16"]
[]
[null,"Volver al Principio"]
[]
["=>","Ejemplos de formatos de Fechas"]
[]
[null,null,"Formato aplicado (FECHAS)","Fecha ingresada","Fecha ingresada con el formato aplicado"]
[null,null,{"$f":"[1]!ForCelda(E38)","v":"dd/mm/yyyy"},{"$f":"TODAY()","v":"2023-08-16"},{"$f":"TODAY()","v":"2023-08-16"}]
[null,null,{"$f":"[1]!ForCelda(E39)","v":"\"AÑO: \" yyyy"},{"$f":"TODAY()","v":"2023-08-16"},"2023-08-16"]
[null,null,{"$f":"[1]!ForCelda(E40)","v":"\"Fecha actual:\" dddd- dd- mmmm,\" de \"yyyy"},"2023-08-16","2023-08-16"]
[null,null,{"$f":"[1]!ForCelda(E41)","v":"\"Mes: \" mmmm"},"2023-08-16","2023-08-16"]
[null,null,{"$f":"[1]!ForCelda(E42)","v":"\"Dia:\" dd, \" de \" mmmm, \" de\" yyyy"},"2023-08-16","2023-08-16"]
[null,null,{"$f":"[1]!ForCelda(E43)","v":"dddd, dd\" de \"mmmm\" de \"yyyy"},"2023-08-16","2023-08-16"]
[]
[null,"Volver al Principio"]
[]
["*","Formato Personalizado de Horas"]
[]
["=>","Simbología para Formato personalizado de HORAS"]
[]
[]
[null,null,"Símbolo","Descripción"]
[null,null,"h","Muestra la hora como un número sin un cero inicial."]
[null,null,"[h]","Muestra el tiempo transcurrido en horas. Si trabaja con una fórmula que devuelve un período en el que el número de horas es mayor que 24, use un formato de número similar a [h]:mm:ss."]
[null,null,"hh","Muestra la hora como un número con un cero inicial si procede. Si el formato contiene a.m. o p.m., la hora se basa en un reloj de 12 horas. En caso contrario, la hora se basa en un reloj de 24 horas."]
[null,null,"m","Muestra el minuto como un número sin un cero inicial."]
[null,null,"[m]","Muestra el tiempo transcurrido en minutos. Si trabaja con una fórmula que devuelve un período en el que el número de minutos es mayor que 60, use un formato de número similar a [mm]:ss."]
[null,null,"mm","Muestra el minuto como un número con un cero inicial si corresponde."]
[null,null,"s","Muestra el segundo como un número sin un cero inicial."]
[null,null,"[s]","Muestra el tiempo transcurrido en segundos. Si trabaja con una fórmula que devuelve un período en el que el número de segundos es mayor que 60, use un formato de número similar a [ss]."]
[null,null,"ss","Muestra el segundo como un número con un cero inicial si corresponde. Si desea mostrar fracciones de un segundo, use un formato de número similar a h:mm:ss.00."]
[null,null,"AM/PM, a.m./p.m., A/P, a/p","Muestra la hora con un reloj de 12 horas. Excel muestra AM, a.m., A o a para las horas desde las 12 de la noche a las 12 del mediodía, y PM, p.m., P o p para las horas desde las 12 del mediodía hasta las 12 de la noche."]
[]
[null,"Volver al Principio"]
[]
["=>","Ejemplos de formato de Horas."]
[]
[null,"Para mostrar","Como","Use este código","Ejemplo: Celdas con el formato aplicado"]
[null,"Horas","0-23",{"$f":"[1]!ForCelda(E69)","v":"h"},"01:23:33"]
[null,"Horas","00-23",{"$f":"[1]!ForCelda(E70)","v":"hh"},"01:23:33"]
[null,"Minutos","0-59",{"$f":"[1]!ForCelda(E71)","v":"m"},"01:23:33"]
[null,"Minutos","00-59",{"$f":"[1]!ForCelda(E72)","v":"mm"},"01:23:33"]
[null,"Segundos","0-59",{"$f":"[1]!ForCelda(E73)","v":"ss"},"01:23:33"]
[null,"Segundos","00-59",{"$f":"[1]!ForCelda(E74)","v":"ss"},"01:23:33"]
[null,"Hora","04:00:00",{"$f":"[1]!ForCelda(E75)","v":"h AM/PM"},"01:23:33"]
[null,"Hora","16:36:00",{"$f":"[1]!ForCelda(E76)","v":"h:mm AM/PM"},"01:23:33"]
[null,"Hora","05:36:22",{"$f":"[1]!ForCelda(E77)","v":"hh:mm:ss"},"01:23:33"]
[]
[null,"Volver al Principio"]
[]
["=>","Ejercicio: Uso del Formato [hh]"]
[null,"Calcular la cantidad total de horas de uso de la maquinaria y su costo total, considerando que por cada hora de uso se paga 120 $."]
[]
[null,"Tiempo de uso de la Maquinaria"]
[]
[null,"Trabajo","Fecha"," Hora inicio","Hora final","Total horas",null,"Formato Aplicado a la celda","Formula insertada en la celda"]
[null,"Uso 1","2023-08-04","08:15:38","16:00:00",{"$f":"E87-D87","v":"07:44:22"},"ç",{"$f":"[1]!ForCelda(F87)","v":"hh:mm"},{"$f":"[1]!ForTexto(F87)","v":"=E87-D87"}]
[null,"Uso 2","2023-08-05","11:34:37","14:30:00",{"$f":"E88-D88","v":"02:55:23"},"ç",{"$f":"[1]!ForCelda(F88)","v":"hh:mm"},{"$f":"[1]!ForTexto(F88)","v":"=E88-D88"}]
[null,"Uso 3","2023-08-06","16:39:43","20:00:00","03:20:17","ç",{"$f":"[1]!ForCelda(F89)","v":"hh:mm"},{"$f":"[1]!ForTexto(F89)","v":"=E89-D89"}]
[null,"Uso 4","2023-08-07","08:36:54","12:30:00","03:53:06","ç",{"$f":"[1]!ForCelda(F90)","v":"hh:mm"},{"$f":"[1]!ForTexto(F90)","v":"=E90-D90"}]
[null,"Uso 5","2023-08-08","14:30:00","17:00:00","02:30:00","ç",{"$f":"[1]!ForCelda(F91)","v":"hh:mm"},{"$f":"[1]!ForTexto(F91)","v":"=E91-D91"}]
[null,"Uso 6","2023-08-09","15:12:59","20:00:00","04:47:01","ç",{"$f":"[1]!ForCelda(F92)","v":"hh:mm"},{"$f":"[1]!ForTexto(F92)","v":"=E92-D92"}]
[null,"Uso 7","2023-08-10","14:50:02","16:00:00","01:09:58","ç",{"$f":"[1]!ForCelda(F93)","v":"hh:mm"},{"$f":"[1]!ForTexto(F93)","v":"=E93-D93"}]
[null,"Uso 8","2023-08-11","11:53:37","15:00:00","03:06:23","ç",{"$f":"[1]!ForCelda(F94)","v":"hh:mm"},{"$f":"[1]!ForTexto(F94)","v":"=E94-D94"}]
[null,null,null,null,"CANT HORAS",{"$f":"SUM(F87:F94)","v":1.2267361111111112},"ç",{"$f":"[1]!ForCelda(F95)","v":"[hh]:mm"},{"$f":"[1]!ForTexto(F95)","v":"=SUMA(F87:F94)"}]
[null,null,null,null,"PRECIO POR HORA",120,"ç",{"$f":"[1]!ForCelda(F96)","v":"$ #.##0,00"},"Constante"]
[null,null,null,null,"COSTO TOTAL",{"$f":"(F95*24)*F96","v":3533.0000000000005},"ç",{"$f":"[1]!ForCelda(F97)","v":"$ #.##0,00"},{"$f":"[1]!ForTexto(F97)","v":"=(F95*24)*F96"}]
[]
[null,"Volver al Principio"]
[]
["*","Ejemplos formatos personalizados de FECHAS y HORAS"]
[]
[]
[null,null,null,null,"02:00:00"]
[null,null,{"$f":"NOW()","v":"2023-08-16T21:42:08.750"},"Inicio","Fin","Formato de celda",{"$f":"[1]!ForCelda(G106)","v":"[hh]"},{"$f":"[1]!ForCelda(H106)","v":"hh:mm"},"hh:mm:ss","[mm]","[ss]"]
[null,null,"Horas mismo día",{"$f":"MOD(C105,1)","v":"21:42:08.750"},{"$f":"D106+E104","v":"23:42:08.750"},"Resultado",{"$f":"$E106-$D106","v":8.333333333333337E-2},{"$f":"$E106-$D106","v":"02:00:00"},"02:00:00",8.333333333333337E-2,8.333333333333337E-2]
[]
[]
[null,null,null,"Inicio","Fin","Formato de celda",{"$f":"[1]!ForCelda(G110)","v":"dd"},{"$f":"[1]!ForCelda(H110)","v":"[hh]"},{"$f":"[1]!ForCelda(I110)","v":"[mm]"},{"$f":"[1]!ForCelda(J110)","v":"[ss]"}]
[null,null,"Fecha",{"$f":"TODAY()","v":"2023-08-16"},{"$f":"D110+2","v":"2023-08-18"},"Resultado",{"$f":"$E110-$D110","v":"1900-01-02"},{"$f":"$E110-$D110","v":2},{"$f":"$E110-$D110","v":2},{"$f":"$E110-$D110","v":2}]
[]
[]
[null,null,null,"Inicio","Fin","Formato de celda",{"$f":"[1]!ForCelda(G114)","v":"dd"},{"$f":"[1]!ForCelda(H114)","v":"dd, hh"},{"$f":"[1]!ForCelda(I114)","v":"dd, hh:mm"},{"$f":"[1]!ForCelda(J114)","v":"dd, hh:mm:ss"},{"$f":"[1]!ForCelda(K114)","v":"[hh]"},{"$f":"[1]!ForCelda(L114)","v":"[mm]"},{"$f":"[1]!ForCelda(M114)","v":"[ss]"}]
[null,null,"Hora y Fecha",{"$f":"NOW()","v":"2023-08-16T21:42:08.750"},{"$f":"D114+2","v":"2023-08-18T21:42:08.750"},"Resultado",{"$f":"$E114-$D114","v":"1900-01-02"},"1900-01-02","1900-01-02","1900-01-02",2,2,2]
[]
[]
[null,"Volver al Principio"]